fUSD/lending_fUSD_20260508
["ID","MTS","AMOUNT","RATE_DAILY","PERIOD"]
[421834522,1778194250000,-522.85,0.00041095,2]
[421834524,1778194250000,-522.85,0.00041095,2]
[421834528,1778194250000,-522.85,0.00041095,2]
[421834604,1778194251000,-300.0,0.00041096,120]
[421834615,1778194251000,-151.0,0.00041096,120]
[421834614,1778194251000,-1352.492882,0.00041096,120]
[421834600,1778194251000,-300.0,0.00041096,120]
[421834601,1778194251000,-300.0,0.00041096,120]
[421834598,1778194251000,-300.0,0.00041096,120]
[421834595,1778194251000,-151.0,0.00041096,120]
[421834596,1778194251000,-151.0,0.00041096,120]
[421834597,1778194251000,-151.0,0.00041096,120]
[421834594,1778194251000,-1560.0,0.00041096,120]
[421834591,1778194251000,-155.41224873,0.00041095,2]
[421834599,1778194251000,-300.0,0.00041096,120]
[421834603,1778194251000,-300.0,0.00041096,120]
[421834627,1778194251000,-262.24,0.000413,17]
[421834613,1778194251000,-1352.492882,0.00041096,120]
[421834610,1778194251000,-399.86,0.00041096,120]
[421834605,1778194251000,-300.0,0.00041096,120]
[421834607,1778194251000,-300.0,0.00041096,120]
[421834606,1778194251000,-300.0,0.00041096,120]
[421834611,1778194251000,-1352.492882,0.00041096,120]
[421834609,1778194251000,-300.0,0.00041096,120]
[421834612,1778194251000,-1352.492882,0.00041096,120]
[421834617,1778194251000,-244.668166,0.00041096,120]
[421834628,1778194251000,-498.48,0.00041318,2]
[421834616,1778194251000,-151.0,0.00041096,120]
[421834593,1778194251000,-637.97400374,0.00041095,2]
[421834608,1778194251000,-300.0,0.00041096,120]
[421834602,1778194251000,-300.0,0.00041096,120]
[421834563,1778194251000,-500.0,0.00041095,2]
[421834589,1778194251000,-300.0,0.00041095,2]
[421834565,1778194251000,-500.0,0.00041095,2]
[421834564,1778194251000,-500.0,0.00041095,2]
[421834619,1778194251000,-504.0,0.00041101,17]
[421834567,1778194251000,-500.0,0.00041095,2]
[421834577,1778194251000,-500.0,0.00041095,2]
[421834569,1778194251000,-500.0,0.00041095,2]
[421834566,1778194251000,-500.0,0.00041095,2]
[421834570,1778194251000,-500.0,0.00041095,2]
[421834568,1778194251000,-500.0,0.00041095,2]
[421834575,1778194251000,-500.0,0.00041095,2]
[421834572,1778194251000,-500.0,0.00041095,2]
[421834574,1778194251000,-500.0,0.00041095,2]
[421834576,1778194251000,-500.0,0.00041095,2]
[421834573,1778194251000,-500.0,0.00041095,2]
[421834571,1778194251000,-500.0,0.00041095,2]
[421834578,1778194251000,-500.0,0.00041095,2]
[421834580,1778194251000,-300.0,0.00041095,2]
[421834581,1778194251000,-300.0,0.00041095,2]
[421834586,1778194251000,-300.0,0.00041095,2]
[421834584,1778194251000,-300.0,0.00041095,2]
[421834582,1778194251000,-300.0,0.00041095,2]
[421834579,1778194251000,-353.4340236,0.00041095,2]
[421834583,1778194251000,-300.0,0.00041095,2]
[421834587,1778194251000,-300.0,0.00041095,2]
[421834590,1778194251000,-300.0,0.00041095,2]
[421834585,1778194251000,-300.0,0.00041095,2]
[421834588,1778194251000,-300.0,0.00041095,2]
[421834592,1778194251000,-500.0,0.00041095,2]
[421834622,1778194251000,-500.0,0.00041199,17]
[421834621,1778194251000,-152.51,0.0004117,120]
[421834678,1778194251000,-500.0,0.00041899,15]
[421834654,1778194251000,-152.51,0.0004167,120]
[421834662,1778194251000,-500.0,0.00041762,30]
[421834661,1778194251000,-500.0,0.00041762,30]
[421834658,1778194251000,-900.0,0.000417,15]
[421834656,1778194251000,-199.0,0.000417,120]
[421834663,1778194251000,-557.886,0.00041762,30]
[421834659,1778194251000,-234.87,0.00041729,7]
[421834653,1778194251000,-10162.89577189,0.00041644,70]
[421834660,1778194251000,-500.0,0.00041762,30]
[421834665,1778194251000,-200.0,0.00041793,120]
[421834673,1778194251000,-2000.0,0.0004189,120]
[421834668,1778194251000,-150.0,0.00041834,2]
[421834666,1778194251000,-200.0,0.00041793,10]
[421834667,1778194251000,-900.0,0.000418,15]
[421834674,1778194251000,-2000.0,0.0004189,120]
[421834669,1778194251000,-300.0,0.0004184,120]
[421834672,1778194251000,-14074.96392825,0.0004189,2]
[421834670,1778194251000,-206.02704091,0.0004184,120]
[421834671,1778194251000,-152.51,0.0004187,120]
[421834675,1778194251000,-2000.0,0.0004189,120]
[421834677,1778194251000,-2000.0,0.0004189,120]
[421834680,1778194251000,-1560.0,0.00041918,120]
[421834676,1778194251000,-2000.0,0.0004189,120]
[421834679,1778194251000,-900.0,0.000419,15]
[421834626,1778194251000,-152.51,0.0004127,120]
[421834681,1778194251000,-350.0,0.00041927,4]
[421834682,1778194251000,-163.0,0.0004195,16]
[421834657,1778194251000,-1754.91,0.000417,14]
[421834655,1778194251000,-1142.5,0.00041694,120]
[421834664,1778194251000,-152.51,0.0004177,120]
[421834648,1778194251000,-270.76,0.000416,30]
[421834624,1778194251000,-153.0,0.000412,120]
[421834652,1778194251000,-2001.4713,0.00041644,4]
[421834620,1778194251000,-498.48,0.00041166,2]
[421834623,1778194251000,-2500.0,0.000412,120]
[421834625,1778194251000,-1577.0,0.00041256,11]
[421834629,1778194251000,-1560.0,0.0004137,120]
[421834633,1778194251000,-428.09,0.00041437,120]
[421834637,1778194251000,-1581.0,0.00041486,11]
[421834631,1778194251000,-152.51,0.0004137,120]
[421834632,1778194251000,-191.13,0.00041437,120]
[421834638,1778194251000,-150.01,0.00041487,120]
[421834634,1778194251000,-439.31,0.00041437,120]
[421834630,1778194251000,-298.0,0.0004137,90]
[421834635,1778194251000,-498.59510573,0.0004147,2]
[421834618,1778194251000,-199.0,0.000411,120]
[421834639,1778194251000,-817.49,0.00041487,120]
[421834636,1778194251000,-152.51,0.0004147,120]
[421834647,1778194251000,-152.51,0.0004157,120]
[421834646,1778194251000,-150.0,0.00041569,30]
[421834642,1778194251000,-498.32,0.00041487,120]
[421834644,1778194251000,-250.0,0.000415,120]
[421834643,1778194251000,-197.0,0.000415,120]
[421834645,1778194251000,-150.0,0.00041558,120]
[421834650,1778194251000,-500.0,0.00041643,70]
[421834649,1778194251000,-500.0,0.00041643,4]
[421834651,1778194251000,-1560.0,0.00041644,120]
[421834641,1778194251000,-294.28,0.00041487,120]
[421834640,1778194251000,-171.79,0.00041487,120]
[421834726,1778194252000,-300.0,0.00042262,30]
[421834720,1778194252000,-300.0,0.00042262,30]
[421834719,1778194252000,-411.43374201,0.00042256,120]
[421834718,1778194252000,-1604.2595898,0.00042236,120]
[421834716,1778194252000,-1000.0,0.00042235,120]
[421834717,1778194252000,-962.49068051,0.00042235,120]
[421834708,1778194252000,-500.0,0.00042199,18]
[421834709,1778194252000,-199.0,0.000422,120]
[421834722,1778194252000,-300.0,0.00042262,30]
[421834710,1778194252000,-217.03483486,0.000422,120]
[421834727,1778194252000,-666.0,0.00042262,30]
[421834721,1778194252000,-300.0,0.00042262,30]
[421834730,1778194252000,-163.0,0.00042263,120]
[421834724,1778194252000,-300.0,0.00042262,30]
[421834725,1778194252000,-300.0,0.00042262,30]
[421834728,1778194252000,-666.0,0.00042262,30]
[421834732,1778194252000,-240.0,0.00042263,120]
[421834731,1778194252000,-155.0,0.00042263,120]
[421834733,1778194252000,-425.0,0.00042263,120]
[421834735,1778194252000,-300.0,0.00042269,30]
[421834737,1778194252000,-300.0,0.00042269,30]
[421834736,1778194252000,-300.0,0.00042269,30]
[421834729,1778194252000,-153.0,0.00042263,120]
[421834714,1778194252000,-310.0,0.00042219,95]
[421834723,1778194252000,-300.0,0.00042262,30]
[421834712,1778194252000,-150.0,0.000422,10]
[421834738,1778194252000,-300.0,0.00042269,30]
[421834711,1778194252000,-355.36745635,0.000422,120]
[421834686,1778194252000,-600.0,0.0004197,3]
[421834684,1778194252000,-150.0,0.00041968,2]
[421834683,1778194252000,-158.13126969,0.00041968,2]
[421834685,1778194252000,-150.17916506,0.00041968,2]
[421834688,1778194252000,-3537.3066604,0.00041996,2]
[421834698,1778194252000,-152.51,0.0004217,120]
[421834697,1778194252000,-504.0,0.00042098,18]
[421834699,1778194252000,-1171.4192263,0.00042187,6]
[421834687,1778194252000,-152.51,0.0004197,120]
[421834689,1778194252000,-500.0,0.00041999,10]
[421834693,1778194252000,-500.0,0.0004203,94]
[421834691,1778194252000,-500.0,0.00042,45]
[421834692,1778194252000,-15900.0,0.00042,30]
[421834695,1778194252000,-152.51,0.0004207,120]
[421834696,1778194252000,-200.50552662,0.00042091,2]
[421834694,1778194252000,-514.72722947,0.00042036,120]
[421834700,1778194252000,-281.2305762,0.00042187,120]
[421834701,1778194252000,-1149.29550399,0.00042187,2]
[421834703,1778194252000,-1560.0,0.00042192,120]
[421834702,1778194252000,-5884.76430474,0.00042187,2]
[421834705,1778194252000,-1300.0,0.00042192,120]
[421834706,1778194252000,-700.0,0.00042192,120]
[421834704,1778194252000,-500.0,0.00042192,120]
[421834707,1778194252000,-500.0,0.00042199,90]
[421834715,1778194252000,-1000.0,0.00042235,120]
[421834713,1778194252000,-500.0,0.00042209,6]
[421834734,1778194252000,-157.0,0.00042263,120]
[421834690,1778194252000,-500.0,0.00041999,45]
[421834739,1778194252000,-300.0,0.00042269,30]
[421834765,1778194252000,-266.0,0.00042287,120]
[421834766,1778194252000,-867.53064955,0.00042287,120]
[421834767,1778194252000,-500.0,0.00042287,120]
[421834770,1778194252000,-2543.8,0.00042287,120]
[421834771,1778194252000,-500.0,0.00042287,120]
[421834776,1778194252000,-2543.8,0.00042287,120]
[421834778,1778194252000,-2808.02,0.00042287,120]
[421834780,1778194252000,-2543.8,0.00042287,120]
[421834779,1778194252000,-566.3,0.00042287,120]
[421834777,1778194252000,-500.0,0.00042287,120]
[421834787,1778194252000,-2808.02,0.00042287,120]
[421834781,1778194252000,-2808.02,0.00042287,120]
[421834785,1778194252000,-2808.02,0.00042287,120]
[421834784,1778194252000,-2543.8,0.00042287,120]
[421834794,1778194252000,-2808.02,0.00042287,120]
[421834782,1778194252000,-2543.8,0.00042287,120]
[421834788,1778194252000,-2543.8,0.00042287,120]
[421834786,1778194252000,-2543.8,0.00042287,120]
[421834790,1778194252000,-2543.8,0.00042287,120]
[421834791,1778194252000,-2808.02,0.00042287,120]
[421834789,1778194252000,-2808.02,0.00042287,120]
[421834793,1778194252000,-2808.02,0.00042287,120]
[421834792,1778194252000,-2543.95033391,0.00042287,120]
[421834795,1778194252000,-2808.02,0.00042287,120]
[421834740,1778194252000,-666.0,0.00042269,30]
[421834772,1778194252000,-2808.02,0.00042287,120]
[421834768,1778194252000,-2808.02,0.00042287,120]
[421834783,1778194252000,-2808.02,0.00042287,120]
[421834769,1778194252000,-500.0,0.00042287,120]
[421834763,1778194252000,-155.0,0.00042287,120]
[421834748,1778194252000,-400.0,0.0004227,3]
[421834749,1778194252000,-152.51,0.0004227,120]
[421834751,1778194252000,-203.39430873,0.00042274,30]
[421834742,1778194252000,-300.0,0.0004227,3]
[421834750,1778194252000,-228.32884377,0.00042274,120]
[421834743,1778194252000,-300.0,0.0004227,3]
[421834744,1778194252000,-300.0,0.0004227,3]
[421834746,1778194252000,-400.0,0.0004227,3]
[421834747,1778194252000,-400.0,0.0004227,3]
[421834745,1778194252000,-400.0,0.0004227,3]
[421834752,1778194252000,-162.57939542,0.00042274,30]
[421834762,1778194252000,-156.0,0.00042287,120]
[421834741,1778194252000,-672.63471202,0.00042269,30]
[421834754,1778194252000,-279.99629778,0.00042274,30]
[421834774,1778194252000,-500.0,0.00042287,120]
[421834757,1778194252000,-150.0,0.00042274,30]
[421834775,1778194252000,-2808.02,0.00042287,120]
[421834773,1778194252000,-2543.8,0.00042287,120]
[421834761,1778194252000,-154.0,0.00042287,120]
[421834753,1778194252000,-250.59645591,0.00042274,30]
[421834764,1778194252000,-153.0,0.00042287,120]
[421834759,1778194252000,-208.52961,0.00042287,30]
[421834760,1778194252000,-157.07199924,0.00042287,120]
[421834758,1778194252000,-77461.91619214,0.00042286,49]
[421834756,1778194252000,-150.0,0.00042274,30]
[421834755,1778194252000,-150.0,0.00042274,30]
[421834824,1778194253000,-334.91,0.00042287,120]
[421834817,1778194253000,-151.1165415,0.00042287,120]
[421834819,1778194253000,-500.0,0.00042287,120]
[421834820,1778194253000,-500.0,0.00042287,120]
[421834822,1778194253000,-500.0,0.00042287,120]
[421834821,1778194253000,-500.0,0.00042287,120]
[421834818,1778194253000,-500.0,0.00042287,120]
[421834823,1778194253000,-500.0,0.00042287,120]
[421834831,1778194253000,-500.0,0.00042287,120]
[421834828,1778194253000,-262.11,0.00042287,120]
[421834826,1778194253000,-500.0,0.00042287,120]
[421834827,1778194253000,-500.0,0.00042287,120]
[421834830,1778194253000,-500.0,0.00042287,120]
[421834829,1778194253000,-500.0,0.00042287,120]
[421834816,1778194253000,-151.1165415,0.00042287,120]
[421834832,1778194253000,-500.0,0.00042287,120]
[421834825,1778194253000,-500.0,0.00042287,120]
[421834815,1778194253000,-151.1165415,0.00042287,120]
[421834799,1778194253000,-500.0,0.00042287,120]
[421834813,1778194253000,-500.0,0.00042287,120]
[421834834,1778194253000,-570.79,0.00042287,120]
[421834800,1778194253000,-592.87411686,0.00042287,120]
[421834801,1778194253000,-500.0,0.00042287,120]
[421834798,1778194253000,-500.0,0.00042287,120]
[421834797,1778194253000,-500.0,0.00042287,120]
[421834796,1778194253000,-2808.04243867,0.00042287,120]
[421834802,1778194253000,-500.0,0.00042287,120]
[421834804,1778194253000,-500.0,0.00042287,120]
[421834805,1778194253000,-500.0,0.00042287,120]
[421834803,1778194253000,-500.0,0.00042287,120]
[421834810,1778194253000,-500.0,0.00042287,120]
[421834809,1778194253000,-500.0,0.00042287,120]
[421834807,1778194253000,-500.0,0.00042287,120]
[421834808,1778194253000,-586.18,0.00042287,120]
[421834806,1778194253000,-500.0,0.00042287,120]
[421834812,1778194253000,-638.10390814,0.00042287,120]
[421834811,1778194253000,-524.37404458,0.00042287,120]
[421834814,1778194253000,-185.35,0.00042287,120]
[421834835,1778194253000,-2008.04,0.00042287,120]
[421834833,1778194253000,-500.0,0.00042287,120]
[421834837,1778194253000,-2008.04,0.00042287,120]
[421834865,1778194253000,-762.43,0.00042287,14]
[421834857,1778194253000,-2008.04,0.00042287,120]
[421834859,1778194253000,-2008.04,0.00042287,120]
[421834858,1778194253000,-2008.04,0.00042287,120]
[421834861,1778194253000,-2008.21783187,0.00042287,120]
[421834862,1778194253000,-762.43,0.00042287,14]
[421834860,1778194253000,-2008.04,0.00042287,120]
[421834866,1778194253000,-421.24648135,0.00042287,120]
[421834855,1778194253000,-2008.04,0.00042287,120]
[421834868,1778194253000,-500.0,0.00042287,120]
[421834867,1778194253000,-762.43,0.00042287,14]
[421834874,1778194253000,-500.0,0.00042287,120]
[421834870,1778194253000,-633.82,0.00042287,120]
[421834873,1778194253000,-762.43,0.00042287,14]
[421834872,1778194253000,-500.0,0.00042287,120]
[421834875,1778194253000,-762.43,0.00042287,14]
[421834836,1778194253000,-2008.04,0.00042287,120]
[421834876,1778194253000,-159.57507917,0.00042287,120]
[421834871,1778194253000,-762.43,0.00042287,14]
[421834856,1778194253000,-2008.04,0.00042287,120]
[421834869,1778194253000,-762.43,0.00042287,14]
[421834864,1778194253000,-762.43,0.00042287,14]
[421834863,1778194253000,-762.43,0.00042287,14]
[421834838,1778194253000,-2008.04,0.00042287,120]
[421834841,1778194253000,-2008.04,0.00042287,120]
[421834840,1778194253000,-2008.04,0.00042287,120]
[421834843,1778194253000,-2008.04,0.00042287,120]
[421834842,1778194253000,-2008.04,0.00042287,120]
[421834845,1778194253000,-2008.04,0.00042287,120]
[421834854,1778194253000,-2008.04,0.00042287,120]
[421834839,1778194253000,-2008.04,0.00042287,120]
[421834846,1778194253000,-2008.04,0.00042287,120]
[421834847,1778194253000,-2008.04,0.00042287,120]
[421834850,1778194253000,-2008.04,0.00042287,120]
[421834848,1778194253000,-2008.04,0.00042287,120]
[421834853,1778194253000,-169.93,0.00042287,120]
[421834851,1778194253000,-500.0,0.00042287,120]
[421834844,1778194253000,-2008.04,0.00042287,120]
[421834849,1778194253000,-500.0,0.00042287,120]
[421834852,1778194253000,-2008.04,0.00042287,120]
[421834917,1778194254000,-384.87,0.00042287,120]
[421834915,1778194254000,-500.0,0.00042287,120]
[421834916,1778194254000,-500.0,0.00042287,120]
[421834914,1778194254000,-500.0,0.00042287,120]
[421834911,1778194254000,-500.0,0.00042287,120]
[421834908,1778194254000,-500.0,0.00042287,120]
[421834918,1778194254000,-500.0,0.00042287,120]
[421834909,1778194254000,-500.0,0.00042287,120]
[421834913,1778194254000,-617.68563883,0.00042287,120]
[421834921,1778194254000,-500.0,0.00042287,120]
[421834919,1778194254000,-500.0,0.00042287,120]
[421834910,1778194254000,-500.0,0.00042287,120]
[421834931,1778194254000,-1240.12,0.00042287,120]
[421834928,1778194254000,-3180.61,0.00042287,120]
[421834920,1778194254000,-500.0,0.00042287,120]
[421834924,1778194254000,-155.32886269,0.00042287,120]
[421834936,1778194254000,-3180.61,0.00042287,120]
[421834922,1778194254000,-500.0,0.00042287,120]
[421834925,1778194254000,-1240.12,0.00042287,120]
[421834923,1778194254000,-500.0,0.00042287,120]
[421834929,1778194254000,-1240.12,0.00042287,120]
[421834926,1778194254000,-1240.12,0.00042287,120]
[421834930,1778194254000,-3180.61,0.00042287,120]
[421834927,1778194254000,-1240.12,0.00042287,120]
[421834933,1778194254000,-1240.12,0.00042287,120]
[421834944,1778194254000,-3180.61,0.00042287,120]
[421834912,1778194254000,-500.0,0.00042287,120]
[421834932,1778194254000,-3180.61,0.00042287,120]
[421834907,1778194254000,-283.32,0.00042287,120]
[421834891,1778194254000,-762.43,0.00042287,14]
[421834898,1778194254000,-370.64,0.00042287,120]
[421834937,1778194254000,-1240.12,0.00042287,120]
[421834878,1778194254000,-762.43,0.00042287,14]
[421834881,1778194254000,-762.43,0.00042287,14]
[421834879,1778194254000,-762.43,0.00042287,14]
[421834877,1778194254000,-762.43,0.00042287,14]
[421834880,1778194254000,-762.43,0.00042287,14]
[421834882,1778194254000,-762.43,0.00042287,14]
[421834883,1778194254000,-500.0,0.00042287,120]
[421834884,1778194254000,-762.43,0.00042287,14]
[421834885,1778194254000,-500.0,0.00042287,120]
[421834886,1778194254000,-762.43,0.00042287,14]
[421834893,1778194254000,-762.43,0.00042287,14]
[421834892,1778194254000,-762.43,0.00042287,14]
[421834904,1778194254000,-500.0,0.00042287,120]
[421834890,1778194254000,-762.43,0.00042287,14]
[421834889,1778194254000,-762.43,0.00042287,14]
[421834888,1778194254000,-762.43,0.00042287,14]
[421834895,1778194254000,-500.0,0.00042287,120]
[421834906,1778194254000,-500.0,0.00042287,120]
[421834905,1778194254000,-346.97,0.00042287,120]
[421834896,1778194254000,-331.8,0.00042287,120]
[421834894,1778194254000,-762.63790073,0.00042287,14]
[421834902,1778194254000,-628.58,0.00042287,120]
[421834903,1778194254000,-500.0,0.00042287,120]
[421834897,1778194254000,-500.0,0.00042287,120]
[421834901,1778194254000,-500.0,0.00042287,120]
[421834899,1778194254000,-500.0,0.00042287,120]
[421834900,1778194254000,-198.79417938,0.00042287,120]
[421834887,1778194254000,-471.49,0.00042287,120]
[421834934,1778194254000,-3180.61,0.00042287,120]
[421834977,1778194254000,-500.0,0.00042287,120]
[421834938,1778194254000,-3180.61,0.00042287,120]
[421834982,1778194254000,-500.0,0.00042287,120]
[421834981,1778194254000,-599.73187,0.00042287,120]
[421834974,1778194254000,-500.0,0.00042287,120]
[421834980,1778194254000,-500.0,0.00042287,120]
[421834975,1778194254000,-500.0,0.00042287,120]
[421834972,1778194254000,-3180.61606047,0.00042287,120]
[421834973,1778194254000,-500.0,0.00042287,120]
[421834976,1778194254000,-500.0,0.00042287,120]
[421834978,1778194254000,-500.0,0.00042287,120]
[421834979,1778194254000,-500.0,0.00042287,120]
[421834983,1778194254000,-500.0,0.00042287,120]
[421834985,1778194254000,-500.0,0.00042287,120]
[421834987,1778194254000,-500.0,0.00042287,120]
[421834986,1778194254000,-500.0,0.00042287,120]
[421834988,1778194254000,-500.0,0.00042287,120]
[421834984,1778194254000,-554.68864252,0.00042287,120]
[421834989,1778194254000,-500.0,0.00042287,120]
[421834994,1778194254000,-500.0,0.00042287,120]
[421834993,1778194254000,-500.0,0.00042287,120]
[421834992,1778194254000,-500.0,0.00042287,120]
[421834990,1778194254000,-500.0,0.00042287,120]
[421834991,1778194254000,-500.0,0.00042287,120]
[421834996,1778194254000,-500.0,0.00042287,120]
[421834995,1778194254000,-500.0,0.00042287,120]
[421834998,1778194254000,-500.0,0.00042287,120]
[421834999,1778194254000,-500.0,0.00042287,120]
[421834940,1778194254000,-3180.61,0.00042287,120]
[421834971,1778194254000,-3180.61,0.00042287,120]
[421834968,1778194254000,-1240.12,0.00042287,120]
[421834997,1778194254000,-500.0,0.00042287,120]
[421834962,1778194254000,-1240.12,0.00042287,120]
[421834967,1778194254000,-3180.61,0.00042287,120]
[421834942,1778194254000,-1240.12,0.00042287,120]
[421834939,1778194254000,-1240.12,0.00042287,120]
[421834941,1778194254000,-3180.61,0.00042287,120]
[421834943,1778194254000,-1240.12,0.00042287,120]
[421834946,1778194254000,-3180.61,0.00042287,120]
[421834957,1778194254000,-3180.61,0.00042287,120]
[421834956,1778194254000,-1240.12,0.00042287,120]
[421834945,1778194254000,-1240.12,0.00042287,120]
[421834952,1778194254000,-1240.12,0.00042287,120]
[421834949,1778194254000,-3180.61,0.00042287,120]
[421834948,1778194254000,-3180.61,0.00042287,120]
[421834947,1778194254000,-1240.12,0.00042287,120]
[421834953,1778194254000,-3180.61,0.00042287,120]
[421834935,1778194254000,-1240.12,0.00042287,120]
[421834954,1778194254000,-1240.12,0.00042287,120]
[421834969,1778194254000,-3180.61,0.00042287,120]
[421834970,1778194254000,-1240.13610303,0.00042287,120]
[421834966,1778194254000,-1240.12,0.00042287,120]
[421834964,1778194254000,-1240.12,0.00042287,120]
[421834950,1778194254000,-1240.12,0.00042287,120]
[421834959,1778194254000,-3180.61,0.00042287,120]
[421834965,1778194254000,-3180.61,0.00042287,120]
[421834960,1778194254000,-1240.12,0.00042287,120]
[421834961,1778194254000,-3180.61,0.00042287,120]
[421834958,1778194254000,-1240.12,0.00042287,120]
[421834955,1778194254000,-3180.61,0.00042287,120]
[421834951,1778194254000,-3180.61,0.00042287,120]
[421834963,1778194254000,-3180.61,0.00042287,120]
[421835043,1778194255000,-793.55,0.00042287,120]
[421835044,1778194255000,-793.55,0.00042287,120]
[421835045,1778194255000,-793.55,0.00042287,120]
[421835034,1778194255000,-793.55,0.00042287,120]
[421835029,1778194255000,-793.55,0.00042287,120]
[421835038,1778194255000,-793.55,0.00042287,120]
[421835039,1778194255000,-793.55,0.00042287,120]
[421835035,1778194255000,-793.55,0.00042287,120]
[421835036,1778194255000,-793.55,0.00042287,120]
[421835033,1778194255000,-793.55,0.00042287,120]
[421835037,1778194255000,-793.55,0.00042287,120]
[421835041,1778194255000,-793.55,0.00042287,120]
[421835048,1778194255000,-793.55,0.00042287,120]
[421835040,1778194255000,-793.55,0.00042287,120]
[421835047,1778194255000,-793.55,0.00042287,120]
[421835058,1778194255000,-500.0,0.00042287,120]
[421835057,1778194255000,-500.0,0.00042287,120]
[421835046,1778194255000,-793.55,0.00042287,120]
[421835049,1778194255000,-793.7236765,0.00042287,120]
[421835050,1778194255000,-500.0,0.00042287,120]
[421835051,1778194255000,-500.0,0.00042287,120]
[421835054,1778194255000,-500.0,0.00042287,120]
[421835055,1778194255000,-500.0,0.00042287,120]
[421835052,1778194255000,-500.0,0.00042287,120]
[421835056,1778194255000,-558.31403526,0.00042287,120]
[421835053,1778194255000,-500.0,0.00042287,120]
[421835042,1778194255000,-793.55,0.00042287,120]
[421835028,1778194255000,-793.55,0.00042287,120]
[421835011,1778194255000,-500.0,0.00042287,14]
[421835026,1778194255000,-793.55,0.00042287,120]
[421835006,1778194255000,-500.0,0.00042287,120]
[421835007,1778194255000,-500.0,0.00042287,120]
[421835003,1778194255000,-500.0,0.00042287,120]
[421835000,1778194255000,-500.0,0.00042287,120]
[421835002,1778194255000,-500.0,0.00042287,120]
[421835004,1778194255000,-612.58221341,0.00042287,120]
[421835001,1778194255000,-500.0,0.00042287,120]
[421835005,1778194255000,-500.0,0.00042287,120]
[421835008,1778194255000,-500.0,0.00042287,120]
[421835010,1778194255000,-500.0,0.00042287,14]
[421835009,1778194255000,-507.09345854,0.00042287,120]
[421835017,1778194255000,-500.0,0.00042287,14]
[421835018,1778194255000,-500.0,0.00042287,14]
[421835016,1778194255000,-500.0,0.00042287,14]
[421835013,1778194255000,-500.0,0.00042287,14]
[421835012,1778194255000,-500.0,0.00042287,14]
[421835015,1778194255000,-500.0,0.00042287,14]
[421835019,1778194255000,-500.0,0.00042287,14]
[421835014,1778194255000,-500.0,0.00042287,14]
[421835021,1778194255000,-500.0,0.00042287,14]
[421835032,1778194255000,-793.55,0.00042287,120]
[421835031,1778194255000,-793.55,0.00042287,120]
[421835020,1778194255000,-500.0,0.00042287,14]
[421835025,1778194255000,-196.05154455,0.00042287,14]
[421835024,1778194255000,-500.0,0.00042287,14]
[421835022,1778194255000,-500.0,0.00042287,14]
[421835023,1778194255000,-500.0,0.00042287,14]
[421835027,1778194255000,-793.55,0.00042287,120]
[421835059,1778194255000,-500.0,0.00042287,120]
[421835030,1778194255000,-793.55,0.00042287,120]